bitfinex/quotes_SOLUSD_20250917
["timestamp","ask_amount","ask_price","bid_price","bid_amount"]
[1758146093616,0.7,240.4,240.36,14.56149108]
[1758146093821,0.7,240.39,240.37,33.72]
[1758146094019,0.7,240.38,240.37,33.72]
[1758146095616,0.8,240.41,240.38,14.56027955]
[1758146095942,0.8,240.41,240.39,33.72]
[1758146096122,0.1,240.41,240.39,33.72]
[1758146096446,0.1,240.41,240.4,41.64346708]
[1758146096613,0.1,240.41,240.4,15.64346708]
[1758146097648,0.06,240.44,240.42,26.0]
[1758146097822,0.06,240.44,240.43,33.72]
[1758146098014,0.76,240.44,240.43,33.72]
[1758146098840,0.76,240.44,240.43,37.87921474]
[1758146099536,0.76,240.44,240.43,33.72]
[1758146099836,0.06,240.44,240.43,33.72]
[1758146100132,0.76,240.44,240.43,37.87921474]
[1758146100336,0.06,240.44,240.43,51.47480875]
[1758146101552,0.76,240.44,240.43,51.47480875]
[1758146102419,0.06,240.44,240.43,51.45480875]
[1758146103043,0.77,240.44,240.43,51.45480875]
[1758146103341,0.77,240.44,240.43,17.75480875]
[1758146103547,0.77,240.44,240.43,37.85921474]
[1758146107828,0.06,240.44,240.43,37.85921474]
[1758146108032,0.77,240.44,240.43,37.85921474]
[1758146108843,6.97694479,240.44,240.41,0.03]
[1758146109019,2.04787307,240.4,240.36,0.03]
[1758146109217,2.04787307,240.4,240.37,33.7]
[1758146109444,0.71,240.39,240.37,33.7]
[1758146109630,0.71,240.38,240.37,33.7]
[1758146110133,0.71,240.38,240.36,0.03]
[1758146110335,0.71,240.38,240.37,33.7]
[1758146113644,0.71,240.38,240.37,37.86025294]
[1758146114424,0.06,240.44,240.37,40.61812601]
[1758146114627,0.06,240.44,240.4,26.0]
[1758146114929,0.06,240.44,240.41,33.68]
[1758146115342,0.06,240.44,240.42,4.15938773]
[1758146115544,0.06,240.44,240.43,33.68]
[1758146118257,0.06,240.44,240.43,37.83921474]
[1758146121340,2.81787307,240.44,240.42,33.68]
[1758146121660,0.71,240.43,240.41,37.83956075]
[1758146121845,0.71,240.42,240.41,37.83956075]
[1758146122032,2.10787307,240.44,240.41,37.83956075]
[1758146122234,2.81787307,240.44,240.41,37.83956075]
[1758146122452,2.10787307,240.44,240.41,37.83956075]
[1758146123242,2.10787307,240.44,240.41,38.54956075]
[1758146123466,0.06,240.44,240.42,0.71]
[1758146123763,0.06,240.44,240.43,34.39]
[1758146123936,0.06,240.44,240.42,33.68]
[1758146125373,0.06,240.44,240.43,4.15921474]
[1758146126347,0.06,240.44,240.43,33.68]
[1758146127666,0.06,240.44,240.43,33.66]
[1758146127849,2.81787307,240.44,240.43,33.66]
[1758146128482,2.10787307,240.44,240.41,4.18942005]
[1758146128766,2.10787307,240.44,240.42,33.66]
[1758146128938,0.71,240.43,240.41,0.03]
[1758146129144,2.04787307,240.42,240.41,0.03]
[1758146129351,2.75787307,240.42,240.41,0.03]
[1758146129660,7.20158394,240.42,240.41,0.03]
[1758146129864,9.99694723,240.42,240.41,0.03]
[1758146131370,5.1275595,240.42,240.41,0.03]
[1758146131751,5.8375595,240.42,240.41,0.03]
[1758146132446,9.99694723,240.42,240.41,0.03]
[1758146133571,5.8375595,240.42,240.41,0.03]
[1758146136155,5.1275595,240.42,240.41,0.03]
[1758146136356,5.8175595,240.42,240.41,0.03]
[1758146138357,5.1275595,240.42,240.41,0.03]
[1758146138758,4.84323636,240.42,240.41,0.03]
[1758146140678,2.04787307,240.42,240.41,0.03]
[1758146140865,4.90323636,240.42,240.41,0.03]
[1758146141065,2.10787307,240.42,240.41,0.03]
[1758146141263,4.90323636,240.42,240.41,0.03]
[1758146141454,2.10787307,240.42,240.41,0.03]
[1758146141678,4.90323636,240.42,240.41,0.03]
[1758146141869,3.08219621,240.42,240.41,0.03]
[1758146142177,10.03694723,240.42,240.41,0.03]
[1758146142958,39.87991715,240.39,240.36,0.03]
[1758146143179,0.28432314,240.32,240.22,0.66]
[1758146143504,0.64,240.31,240.22,0.66]
[1758146143659,0.28432314,240.29,240.22,0.66]
[1758146143982,0.28432314,240.29,240.19,4.16323381]
[1758146143983,2.04787307,240.23,240.2,0.66]
[1758146144198,2.04787307,240.21,240.18,10.4086991]
[1758146144869,2.04787307,240.21,240.19,4.82337066]
[1758146145289,2.04787307,240.21,240.2,0.66]
[1758146146163,2.04787307,240.22,240.2,0.66]
[1758146146880,2.04787307,240.22,240.2,4.82315064]
[1758146147759,2.04787307,240.22,240.21,0.66]
[1758146148369,2.04787307,240.22,240.2,4.16315064]
[1758146148575,2.04787307,240.22,240.2,4.82315064]
[1758146148975,2.04787307,240.22,240.2,4.16315064]
[1758146149287,2.04787307,240.22,240.21,26.66]
[1758146149461,2.04787307,240.22,240.21,0.66]
[1758146150392,2.04787307,240.22,240.21,4.82302402]
[1758146151464,2.04787307,240.22,240.21,4.16302402]
[1758146151665,5.08631112,240.27,240.21,4.16302402]
[1758146151864,2.04787307,240.22,240.21,4.16302402]
[1758146152392,2.04787307,240.22,240.2,4.16319733]
[1758146152574,2.04787307,240.22,240.2,4.82319733]
[1758146152768,2.04787307,240.22,240.2,4.16319733]
[1758146152977,2.04787307,240.22,240.21,0.66]
[1758146153865,2.04787307,240.22,240.21,4.82302402]
[1758146154988,36.40333301,240.31,240.21,15.23058407]
[1758146154989,2.04787307,240.24,240.21,15.23058407]
[1758146155180,2.04787307,240.24,240.22,0.66]
[1758146155788,3.2040791,240.25,240.23,0.66]
[1758146155964,3.2040791,240.25,240.24,4.16250416]
[1758146156166,26.0,240.3,240.24,4.82250416]
[1758146156393,3.2040791,240.26,240.24,4.82250416]
[1758146156592,3.2040791,240.26,240.24,4.16250416]
[1758146157098,3.2040791,240.26,240.22,4.82282788]
[1758146157269,3.2040791,240.26,240.23,0.66]
[1758146157471,3.2040791,240.26,240.24,0.66]
[1758146158891,3.2040791,240.26,240.25,0.67]
[1758146160285,3.2040791,240.26,240.25,4.8323309]
[1758146160494,30.16138325,240.31,240.25,4.8323309]
[1758146160790,3.2040791,240.26,240.25,4.1623309]
[1758146160968,30.80138325,240.31,240.25,4.8323309]
[1758146161286,3.2040791,240.26,240.25,4.8323309]
[1758146161794,3.2040791,240.26,240.25,0.67]
[1758146161974,3.2040791,240.26,240.22,4.16269577]
[1758146162180,3.2040791,240.24,240.22,4.83269577]
[1758146162379,3.2040791,240.24,240.23,0.67]
[1758146162765,4.16154167,240.3,240.23,0.67]
[1758146162971,3.2040791,240.24,240.23,0.67]
[1758146163172,3.2040791,240.24,240.2,4.19306456]
[1758146163374,3.2040791,240.22,240.2,4.19306456]
[1758146163801,3.2040791,240.22,240.2,4.87306456]
[1758146167695,26.0,240.31,240.2,4.87306456]
[1758146167696,0.7,240.36,240.21,47.89559401]
[1758146167888,0.7,240.36,240.23,13.59559401]
[1758146167889,3.2040791,240.29,240.23,13.59559401]
[1758146168083,3.2040791,240.29,240.24,0.68]
[1758146169088,3.2040791,240.31,240.24,0.68]
[1758146169900,3.2040791,240.31,240.25,14.56815816]
[1758146170105,3.2040791,240.31,240.26,34.3]
[1758146170298,3.2040791,240.31,240.27,0.68]
[1758146170506,3.2040791,240.31,240.28,0.68]
[1758146170706,3.2040791,240.31,240.29,0.68]
[1758146171602,3.2040791,240.32,240.26,33.62]
[1758146171804,3.2040791,240.33,240.31,4.16129166]
[1758146171993,3.2040791,240.33,240.31,4.84129166]
[1758146172398,3.2040791,240.33,240.31,4.16129166]
[1758146173305,3.2040791,240.33,240.3,14.56503074]
[1758146173516,3.2040791,240.33,240.3,15.24503074]
[1758146174710,3.2040791,240.33,240.31,0.68]
[1758146175322,3.2040791,240.33,240.3,10.40356591]
[1758146175681,3.2040791,240.35,240.31,0.68]
[1758146175882,3.2040791,240.35,240.32,0.68]
[1758146176186,3.2040791,240.35,240.33,0.68]
[1758146176796,3.2040791,240.35,240.34,4.84077223]
[1758146177607,3.2040791,240.35,240.34,4.16077223]
[1758146183186,3.2040791,240.35,240.31,4.16129166]
[1758146183388,0.06,240.36,240.31,4.16129166]
[1758146183588,3.2040791,240.32,240.31,4.84129166]
[1758146184908,3.2040791,240.33,240.31,4.84129166]
[1758146186724,3.2040791,240.33,240.32,0.68]
[1758146187304,3.2040791,240.33,240.32,4.8411185]
[1758146188205,3.2040791,240.34,240.32,4.8411185]
[1758146188924,3.2040791,240.34,240.32,0.68]
[1758146189301,3.2040791,240.34,240.31,0.68]
[1758146189509,3.2040791,240.34,240.3,10.40356591]
[1758146189703,3.2040791,240.34,240.32,0.68]
[1758146191408,3.2040791,240.34,240.33,4.16094536]
[1758146192341,3.2040791,240.34,240.31,4.84129166]
[1758146192546,3.2040791,240.34,240.32,0.66]
[1758146193218,3.2040791,240.34,240.31,14.56452082]
[1758146193418,3.2040791,240.34,240.31,15.22452082]
[1758146194043,3.2040791,240.34,240.31,10.40322916]
[1758146194220,3.2040791,240.34,240.32,0.66]
[1758146194427,3.2040791,240.34,240.31,10.40322916]
[1758146194428,3.2040791,240.34,240.33,0.66]
[1758146194818,3.2040791,240.34,240.31,11.06322916]
[1758146195338,3.2040791,240.34,240.31,10.40322916]
[1758146195516,3.2040791,240.34,240.31,11.06322916]
[1758146195719,3.2040791,240.34,240.33,4.16094536]
[1758146199742,3.2040791,240.34,240.33,0.66]
[1758146199941,3.2040791,240.34,240.31,11.09322916]
[1758146200249,3.2040791,240.34,240.32,0.66]
[1758146201234,3.2040791,240.34,240.33,4.16094536]
[1758146204329,3.2040791,240.34,240.31,10.43322916]
[1758146204541,3.2040791,240.32,240.31,0.03]
[1758146204846,3.8440791,240.32,240.31,0.03]
[1758146205026,4.12840224,240.32,240.31,0.03]
[1758146205230,8.28952074,240.32,240.31,0.03]
[1758146205431,11.07520593,240.32,240.31,0.03]
[1758146206065,24.67079994,240.32,240.31,0.03]
[1758146206346,62.37318595,240.32,240.31,0.03]
[1758146207848,28.83318595,240.32,240.31,0.03]
[1758146208033,26.0,240.29,240.28,0.03]
[1758146208234,32.27408743,240.29,240.28,0.03]
[1758146208552,46.50968144,240.29,240.28,0.03]
[1758146208739,48.17749473,240.29,240.28,0.03]
[1758146209632,52.33913275,240.29,240.28,0.03]
[1758146215866,85.87913275,240.29,240.28,0.03]
[1758146216031,85.85913275,240.29,240.28,0.03]
[1758146217754,84.70639597,240.29,240.28,0.03]
[1758146219054,51.18639597,240.29,240.28,0.03]
[1758146219242,84.70639597,240.29,240.28,0.03]
[1758146219645,50.54639597,240.29,240.28,0.03]
[1758146220159,84.06639597,240.29,240.28,0.03]
[1758146221561,84.70639597,240.29,240.28,0.03]
[1758146222057,84.06639597,240.29,240.28,0.03]
[1758146222468,70.47080196,240.29,240.28,0.03]
[1758146223869,68.1351365,240.29,240.28,0.03]
[1758146224043,68.51866553,240.29,240.28,0.75]
[1758146224247,68.6608271,240.29,240.28,0.03]
[1758146224471,68.80298867,240.29,240.28,0.03]
[1758146224769,35.28298867,240.29,240.28,0.03]
[1758146225062,66.01730348,240.29,240.28,0.03]
[1758146225269,35.55134232,240.29,240.28,0.75]
[1758146227353,2.05134232,240.29,240.28,0.75]
[1758146227654,4.5055562,240.32,240.28,0.75]
[1758146227655,2.85200364,240.32,240.28,4.91181122]
[1758146227958,2.05134232,240.29,240.28,4.19181122]
[1758146228345,2.05134232,240.29,240.28,4.91181122]
[1758146228766,2.05134232,240.29,240.28,15.31633927]
[1758146230759,2.05134232,240.29,240.28,4.91181122]
[1758146233055,0.06,240.32,240.28,4.91181122]
[1758146233253,2.11134232,240.31,240.29,0.72]
[1758146234070,0.06,240.31,240.29,0.72]
[1758146234276,0.06,240.31,240.3,4.16146483]
[1758146234781,0.06,240.31,240.3,4.88146483]
[1758146247382,0.06,240.32,240.3,44.47705884]
[1758146247688,0.06,240.32,240.31,14.31559401]
[1758146248798,0.06,240.32,240.31,18.47688567]
[1758146258793,0.06,240.32,240.31,18.89301483]
[1758146261981,0.06,240.34,240.31,18.89301483]
[1758146261982,0.06,240.34,240.33,39.59559401]
[1758146262198,0.06,240.34,240.33,75.46303086]
[1758146262394,0.06,240.35,240.34,13.59559401]
[1758146262594,0.06,240.35,240.34,14.27559401]
[1758146263501,0.06,240.35,240.34,18.43636624]
[1758146272025,0.06,240.37,240.34,18.43636624]
[1758146272214,0.06,240.37,240.35,75.68693633]
[1758146272616,0.06,240.37,240.35,79.84753545]
[1758146272800,0.06,240.37,240.35,80.26359536]
[1758146274396,0.06,240.37,240.35,78.21225304]
[1758146278233,0.06,240.37,240.35,44.85225304]
[1758146278406,0.06,240.37,240.35,78.19225304]
[1758146282810,1e-08,240.36,240.35,78.19225304]
[1758146283011,1e-08,240.37,240.35,78.19225304]
[1758146283215,1e-08,240.37,240.36,3.89965213]
[1758146284632,1e-08,240.37,240.36,8.06007815]
[1758146285933,1e-08,240.37,240.36,4.86042602]
[1758146286157,1e-08,240.37,240.36,8.06007815]
[1758146287616,0.64000001,240.37,240.35,0.03]
[1758146287812,3.19965213,240.36,240.35,0.03]
[1758146288322,3.83965213,240.36,240.35,0.03]
[1758146290234,6.63514325,240.36,240.35,0.03]
[1758146290429,3.83965213,240.36,240.35,0.03]
[1758146291130,10.79899568,240.36,240.35,0.03]
[1758146295331,15.66562704,240.36,240.35,0.03]
[1758146295755,15.94995018,240.36,240.35,0.03]
[1758146296350,15.94995018,240.36,240.32,0.03]
[1758146296351,0.28432314,240.35,240.32,0.03]
[1758146296663,3.48397527,240.33,240.32,0.03]
[1758146296859,32.9228928,240.33,240.32,0.03]
[1758146298169,37.08383816,240.33,240.32,0.03]
[1758146298665,50.67943217,240.33,240.32,0.03]
[1758146300139,24.67943217,240.33,240.32,0.03]
[1758146301836,50.67943217,240.33,240.32,0.03]
[1758146302044,24.67943217,240.33,240.32,0.03]
[1758146302251,26.34703687,240.33,240.32,0.03]
[1758146303349,59.62703687,240.33,240.32,0.03]
[1758146308075,52.34703687,240.33,240.32,0.03]
[1758146308291,59.60703687,240.33,240.32,0.03]
[1758146312073,4.86725683,240.33,240.32,0.73]
[1758146312282,36.43965213,240.33,240.32,0.73]
[1758146312983,3.19965213,240.33,240.32,0.73]
[1758146314579,3.19965213,240.33,240.32,4.8911185]
[1758146318394,0.06,240.35,240.32,4.8911185]
[1758146318562,3.25965213,240.35,240.33,0.67]
[1758146318882,0.06,240.35,240.33,0.67]
[1758146320479,0.06,240.35,240.34,4.16077223]
[1758146320878,0.06,240.35,240.34,4.83077223]
[1758146326390,0.06,240.35,240.34,44.42636624]
[1758146327283,0.06,240.35,240.34,44.84244346]
[1758146327591,1e-08,240.37,240.35,13.59559401]
[1758146327786,1e-08,240.37,240.36,46.79559401]
[1758146328093,1e-08,240.37,240.36,47.88163661]
[1758146329300,1e-08,240.37,240.36,52.04206263]
[1758146332288,0.06,240.39,240.38,13.59559401]
[1758146332490,1e-08,240.39,240.38,42.79524614]
[1758146332691,1e-08,240.4,240.39,13.59559401]
[1758146333002,0.06,240.47,240.41,26.0]
[1758146333206,0.06,240.47,240.41,66.53921288]
[1758146333416,0.06,240.47,240.41,67.20921288]
[1758146334800,0.06,240.47,240.42,13.59559401]
[1758146335103,0.06,240.47,240.42,14.26559401]
[1758146335298,0.06,240.47,240.43,14.26559401]
[1758146335797,0.06,240.47,240.43,18.42480875]
[1758146338681,0.06,240.47,240.43,21.62446088]
[1758146339984,0.06,240.47,240.43,30.86912515]
[1758146340182,0.06,240.47,240.45,13.59559401]
[1758146340602,0.06,240.47,240.46,14.29559401]
[1758146341317,0.06,240.47,240.46,17.75428984]
[1758146341709,0.06,240.47,240.46,50.89428984]
[1758146341910,0.7,240.47,240.43,10.39803685]
[1758146342224,2.74627955,240.47,240.44,33.14]
[1758146342397,0.64,240.46,240.44,33.14]
[1758146342909,0.64,240.45,240.41,43.75515476]
[1758146343112,2.68627955,240.44,240.41,26.0]
[1758146343408,0.64,240.43,240.42,33.12]
[1758146343779,0.64,240.43,240.36,4.16042602]
[1758146343983,2.04627955,240.41,240.36,4.16042602]
[1758146344209,0.64,240.4,240.37,33.12]
[1758146344389,0.64,240.4,240.38,33.12]
[1758146344590,0.64,240.4,240.36,4.16042602]
[1758146344591,0.64,240.4,240.39,33.12]
[1758146345516,0.64,240.4,240.39,37.27990681]
[1758146345894,0.64,240.4,240.35,13.59559401]
[1758146346245,0.64,240.4,240.36,33.12]
[1758146346588,26.0,240.46,240.34,0.03]
[1758146346589,2.04627955,240.39,240.34,0.03]
[1758146346789,2.68627955,240.39,240.34,0.03]
[1758146347010,0.64,240.38,240.35,33.12]
[1758146347384,0.64,240.38,240.35,37.28058296]
[1758146349111,2.04627955,240.39,240.35,37.28058296]
[1758146349413,4.15941632,240.42,240.35,37.28058296]
[1758146349414,0.64,240.4,240.35,37.28058296]
[1758146349723,2.04627955,240.38,240.35,37.28058296]
[1758146350511,2.04627955,240.38,240.35,37.96058296]
[1758146351523,2.04627955,240.38,240.35,4.84058296]
[1758146351703,2.04627955,240.38,240.37,4.16025294]
[1758146353740,2.04627955,240.39,240.37,4.16025294]
[1758146353917,2.04627955,240.41,240.37,4.84025294]
[1758146354116,2.68627955,240.41,240.37,4.16025294]
[1758146355232,2.04627955,240.41,240.38,0.68]
[1758146355443,2.04627955,240.41,240.39,0.68]
[1758146355735,2.04627955,240.43,240.4,4.15973377]
[1758146356328,7.00509121,240.47,240.4,4.15973377]
[1758146356506,2.04627955,240.43,240.4,4.15973377]
[1758146356711,2.04627955,240.43,240.4,4.83973377]
[1758146357629,2.04627955,240.44,240.41,0.68]
[1758146357935,2.04627955,240.44,240.42,4.15938773]
[1758146358138,2.04627955,240.46,240.43,0.68]
[1758146358439,2.04627955,240.46,240.42,4.15938773]
[1758146358440,2.04627955,240.46,240.44,0.68]
[1758146358946,2.04627955,240.46,240.42,47.65785707]
[1758146359104,2.10627955,240.46,240.43,0.68]
[1758146359512,0.06,240.46,240.43,0.68]
[1758146359842,0.06,240.46,240.44,4.15904175]
[1758146360012,0.06,240.46,240.45,33.08]
[1758146360212,0.06,240.46,240.45,33.76]
[1758146361932,0.06,240.46,240.45,37.91886878]
[1758146362512,0.06,240.46,240.45,51.51446279]
[1758146364328,0.06,240.46,240.45,4.83886878]
[1758146364527,2.74627955,240.46,240.43,4.15909922]
[1758146364744,2.04627955,240.44,240.43,4.15909922]
[1758146365630,2.04627955,240.44,240.41,4.15956075]
[1758146367638,2.04627955,240.44,240.41,4.83956075]
[1758146370640,2.04627955,240.45,240.41,14.55846262]
[1758146370837,0.06,240.46,240.42,0.68]
[1758146371427,0.06,240.46,240.41,14.55846262]
[1758146371630,0.06,240.46,240.43,0.68]
[1758146372347,0.06,240.46,240.44,4.15904175]
[1758146373549,0.06,240.46,240.44,0.71]
[1758146373846,0.06,240.46,240.41,14.55846262]
[1758146373847,0.06,240.46,240.45,0.71]
[1758146374831,0.06,240.46,240.45,4.86886878]
[1758146377924,0.06,240.46,240.45,4.15886878]
[1758146378537,0.06,240.46,240.45,4.86886878]
[1758146389237,0.06,240.46,240.45,37.86886878]
[1758146400363,0.06,240.46,240.45,53.51074234]
[1758146400756,0.06,240.47,240.45,53.51074234]
[1758146400961,0.06,240.51,240.49,13.59559401]
[1758146401148,0.06,240.51,240.5,48.60187356]
[1758146401359,0.06,240.51,240.5,49.29187356]
[1758146401848,0.06,240.51,240.5,54.59923848]
[1758146402653,0.1,240.56,240.51,13.59559401]
[1758146402853,0.1,240.56,240.52,32.96]
[1758146403037,0.1,240.56,240.55,13.59559401]
[1758146403240,1e-08,240.56,240.55,46.55559401]
[1758146403457,1e-08,240.56,240.55,47.21559401]
[1758146403844,1e-08,240.56,240.55,51.37273389]
[1758146404045,1e-08,240.56,240.55,77.65705703]
[1758146404564,1e-08,240.56,240.55,51.65705703]
[1758146405474,3.44010501,240.72,240.58,26.0]
[1758146405643,0.64,240.74,240.67,13.59559401]
[1758146405843,0.64,240.74,240.69,4.15472184]
[1758146406161,3.19564032,240.77,240.7,33.6]
[1758146406351,0.64,240.76,240.7,32.94]
[1758146407045,3.83564032,240.76,240.7,32.94]
[1758146407243,3.83564032,240.76,240.71,4.15437663]
[1758146407446,3.19564032,240.76,240.72,32.94]
[1758146407651,0.64,240.78,240.72,32.94]
[1758146407852,3.19564032,240.78,240.73,14.25559401]
[1758146408072,4.15261601,240.82,240.74,33.6]
[1758146408275,3.19564032,240.78,240.74,32.94]
[1758146408875,3.19564032,240.79,240.75,0.66]
[1758146409071,0.64,240.8,240.76,32.92]
[1758146409372,3.19564032,240.79,240.76,32.92]
[1758146409573,0.64,240.82,240.76,37.07350243]
[1758146409756,3.19564032,240.83,240.77,0.66]
[1758146410068,6.92708852,240.89,240.78,32.92]
[1758146410367,3.19564032,240.85,240.79,14.25559401]
[1758146410572,3.19564032,240.85,240.8,33.58]
[1758146410963,0.64,240.88,240.8,33.58]
[1758146411271,0.64,240.9,240.82,13.59559401]
[1758146411586,0.06,240.84,240.83,46.51559401]
[1758146411755,0.06,240.84,240.83,47.17559401]
[1758146412162,0.06,240.84,240.79,0.66]
[1758146412163,3.89564032,240.84,240.79,0.66]
[1758146412363,3.19564032,240.82,240.8,32.92]
[1758146412777,0.06,240.84,240.8,32.92]
[1758146412982,3.19564032,240.83,240.8,32.92]
[1758146413282,3.19564032,240.82,240.8,32.92]
[1758146413452,3.19564032,240.82,240.8,33.58]
[1758146413983,3.19564032,240.82,240.81,0.66]
[1758146414284,3.19564032,240.82,240.8,37.07276472]
[1758146414651,0.06,240.84,240.8,33.58]
[1758146414850,3.19564032,240.82,240.8,33.58]
[1758146415366,0.06,240.84,240.8,33.58]
[1758146415565,3.19564032,240.82,240.8,33.58]
[1758146415864,0.06,240.84,240.8,33.58]
[1758146416061,0.06,240.84,240.81,32.9]
[1758146416265,3.19564032,240.82,240.81,32.9]
[1758146417482,3.19564032,240.82,240.81,32.88]
[1758146418071,3.19564032,240.82,240.79,4.81297512]
[1758146418266,3.19564032,240.82,240.8,33.54]
[1758146419083,3.19564032,240.83,240.81,0.66]
[1758146419390,3.19564032,240.83,240.82,0.66]
[1758146419589,3.25564032,240.84,240.82,0.66]
[1758146419894,3.25564032,240.84,240.82,33.54]
[1758146420190,0.06,240.84,240.83,0.66]
[1758146421091,0.06,240.84,240.83,33.54]
[1758146421382,0.06,240.84,240.83,0.66]
[1758146421582,0.06,240.84,240.83,33.54]
[1758146422359,0.06,240.84,240.83,32.88]
[1758146422890,0.06,240.84,240.78,13.59559401]
[1758146422891,3.89564032,240.84,240.78,13.59559401]
[1758146423081,3.89564032,240.84,240.71,13.59559401]
[1758146423082,3.19564032,240.79,240.71,13.59559401]
[1758146423285,3.19564032,240.74,240.73,13.59559401]
[1758146424507,3.19564032,240.74,240.72,32.86]
[1758146425208,3.19564032,240.73,240.72,46.45559401]
[1758146425607,3.19564032,240.74,240.72,46.45559401]
[1758146427103,4.79317889,240.78,240.72,46.45559401]
[1758146427303,3.19564032,240.74,240.72,47.11559401]
[1758146427603,3.19564032,240.74,240.72,32.86]
[1758146427905,3.19564032,240.73,240.72,32.86]
[1758146428284,3.19564032,240.73,240.71,32.86]
[1758146428486,3.19564032,240.72,240.71,32.86]
[1758146428990,0.64,240.75,240.71,32.86]
[1758146429194,3.19564032,240.74,240.71,32.86]
[1758146429585,3.19564032,240.74,240.71,37.01429812]
[1758146430702,3.19564032,240.79,240.73,13.59559401]
[1758146431003,3.19564032,240.79,240.74,33.5]
[1758146431192,0.06,240.82,240.75,0.66]
[1758146431392,3.19564032,240.79,240.76,32.84]
[1758146431689,3.19564032,240.78,240.77,32.84]
[1758146433204,3.19564032,240.79,240.77,33.49]
[1758146433407,3.19564032,240.79,240.78,0.65]
[1758146433991,3.19564032,240.79,240.77,32.84]
[1758146434308,3.19564032,240.79,240.77,33.49]
[1758146434892,3.19564032,240.79,240.77,32.84]
[1758146435120,0.06,240.82,240.78,0.65]
[1758146435288,3.19564032,240.79,240.78,0.65]
[1758146436099,3.19564032,240.79,240.78,4.80316886]
[1758146436613,3.19564032,240.79,240.78,0.65]
[1758146437613,0.06,240.82,240.78,0.65]
[1758146437805,3.19564032,240.79,240.78,0.65]
[1758146438311,3.19564032,240.79,240.77,32.84]
[1758146438607,3.19564032,240.78,240.77,36.99334136]
[1758146438792,3.19564032,240.78,240.77,37.64334136]
[1758146440011,3.19564032,240.78,240.77,32.82]
[1758146440214,3.19564032,240.78,240.76,32.82]
[1758146440411,3.19564032,240.77,240.74,0.65]
[1758146440592,3.19564032,240.75,240.7,0.65]
[1758146440793,3.19564032,240.71,240.67,28.13832887]
[1758146441005,3.19564032,240.7,240.69,13.59559401]
[1758146441513,3.19564032,240.7,240.69,14.24559401]
[1758146441713,0.64,240.77,240.69,14.24559401]
[1758146441886,3.19564032,240.71,240.69,14.24559401]
[1758146442086,3.19564032,240.71,240.7,18.40014324]
[1758146444116,3.19564032,240.72,240.7,18.40014324]
[1758146444313,7.57184052,240.79,240.71,33.47]
[1758146444314,3.19564032,240.73,240.71,33.47]
[1758146444511,3.19564032,240.74,240.72,0.65]
[1758146444713,0.7,240.82,240.73,13.59559401]
[1758146444901,0.06,240.82,240.74,33.47]
[1758146445100,0.06,240.82,240.75,0.65]
[1758146445309,3.19564032,240.79,240.75,0.65]
[1758146445513,3.19564032,240.79,240.76,0.65]
[1758146445695,3.19564032,240.79,240.77,33.47]
[1758146446200,3.19564032,240.78,240.77,36.97317736]
[1758146446394,4.21250358,240.82,240.77,32.82]
[1758146446594,3.19564032,240.78,240.77,32.82]
[1758146448006,3.19564032,240.78,240.77,33.47]
[1758146448426,3.19564032,240.78,240.77,32.82]
[1758146448598,3.19564032,240.78,240.77,33.47]
[1758146448802,3.19564032,240.78,240.77,37.62334136]
[1758146449313,3.19564032,240.79,240.77,37.62334136]
[1758146449512,0.06,240.78,240.77,37.62334136]
[1758146449712,0.06,240.78,240.73,23.98041692]
[1758146449713,0.06,240.78,240.75,0.65]
[1758146449920,0.06,240.78,240.76,32.8]
[1758146450310,0.06,240.78,240.76,33.45]
[1758146450709,0.06,240.78,240.76,37.60350523]
[1758146451107,0.06,240.78,240.77,0.65]
[1758146451513,0.06,240.78,240.74,0.65]